fUSD/lending_fUSD_20250223
["ID","MTS","AMOUNT","RATE_DAILY","PERIOD"]
[354198994,1740343888821,-706.59,0.00016767,2]
[354198995,1740343888830,-717.05,0.00016767,2]
[354198996,1740343888839,-500.0,0.00016767,2]
[354198997,1740343888847,-500.0,0.00016767,2]
[354198998,1740343888857,-500.0,0.00016767,2]
[354198999,1740343888866,-1040.39,0.00016767,2]
[354199000,1740343888875,-1199.15,0.00016767,2]
[354199001,1740343888884,-500.0,0.00016767,2]
[354199002,1740343888893,-781.31,0.00016767,2]
[354199003,1740343888902,-500.0,0.00016767,2]
[354199004,1740343888911,-500.0,0.00016767,2]
[354199005,1740343888920,-500.0,0.00016767,2]
[354199006,1740343888929,-435.05719206,0.00016767,2]
[354199007,1740343888938,-500.0,0.00016767,2]
[354199008,1740343888947,-500.0,0.00016767,2]
[354199009,1740343888956,-500.0,0.00016767,2]
[354199010,1740343888965,-500.0,0.00016767,2]
[354199011,1740343888974,-734.72,0.00016767,2]
[354199012,1740343888983,-500.0,0.00016767,2]
[354199013,1740343888992,-500.0,0.00016767,2]
[354199014,1740343889001,-500.0,0.00016767,2]
[354199015,1740343889010,-500.0,0.00016767,2]
[354199016,1740343889019,-625.0,0.00016767,2]
[354199017,1740343889029,-500.0,0.00016767,2]
[354199018,1740343889038,-723.95,0.00016767,2]
[354199019,1740343889047,-500.0,0.00016767,2]
[354199020,1740343889056,-687.87,0.00016767,2]
[354199021,1740343889067,-776.6,0.00016767,2]
[354199022,1740343889076,-662.52,0.00016767,2]
[354199023,1740343889085,-500.0,0.00016767,2]
[354199024,1740343889095,-500.0,0.00016767,2]
[354199025,1740343889104,-375.15984556,0.00016767,2]
[354199026,1740343889113,-796.55,0.00016767,2]
[354199027,1740343889122,-814.83,0.00016767,2]
[354199028,1740343889132,-689.81,0.00016767,2]
[354199029,1740343889141,-500.0,0.00016767,2]
[354199030,1740343889150,-500.0,0.00016767,2]
[354199031,1740343889159,-500.0,0.00016767,2]
[354199032,1740343889168,-500.0,0.00016767,2]
[354199033,1740343889177,-500.0,0.00016767,2]
[354199034,1740343889187,-500.0,0.00016767,2]
[354199035,1740343889196,-781.83,0.00016767,2]
[354199036,1740343889205,-500.0,0.00016767,2]
[354199037,1740343889215,-769.09,0.00016767,2]
[354199038,1740343889224,-500.0,0.00016767,2]
[354199039,1740343889233,-942.23,0.00016767,2]
[354199040,1740343889242,-1130.85,0.00016767,2]
[354199041,1740343889251,-500.0,0.00016767,2]
[354199042,1740343889260,-500.0,0.00016767,2]
[354199043,1740343889269,-500.0,0.00016767,2]
[354199044,1740343889278,-500.0,0.00016767,2]
[354199045,1740343889287,-500.0,0.00016767,2]
[354199046,1740343889296,-637.99,0.00016767,2]
[354199047,1740343889305,-664.99,0.00016767,2]
[354199048,1740343889315,-500.0,0.00016767,2]
[354199049,1740343889324,-770.57,0.00016767,2]
[354199050,1740343889333,-500.0,0.00016767,2]
[354199051,1740343889342,-500.0,0.00016767,2]
[354199052,1740343889351,-500.0,0.00016767,2]
[354199053,1740343889361,-1034.34,0.00016767,2]
[354199054,1740343889370,-500.0,0.00016767,2]
[354199055,1740343889379,-500.0,0.00016767,2]
[354199056,1740343889387,-500.0,0.00016767,2]
[354199057,1740343889396,-500.0,0.00016767,2]
[354199058,1740343889405,-600.87,0.00016767,2]
[354199059,1740343889414,-508.45922555,0.00016767,2]
[354199060,1740343889423,-500.0,0.00016767,2]
[354199061,1740343889432,-746.03,0.00016767,2]
[354199062,1740343889441,-500.0,0.00016767,2]
[354199063,1740343889454,-710.25,0.00016767,2]
[354199064,1740343889463,-500.0,0.00016767,2]
[354199065,1740343889472,-734.17,0.00016767,2]
[354199066,1740343889481,-500.0,0.00016767,2]
[354199067,1740343889490,-500.0,0.00016767,2]
[354199068,1740343889500,-703.72,0.00016767,2]
[354199069,1740343889509,-865.64,0.00016767,2]
[354199070,1740343889518,-500.0,0.00016767,2]
[354199071,1740343889529,-732.05,0.00016767,2]
[354199072,1740343889538,-500.0,0.00016767,2]
[354199073,1740343889548,-2331.89,0.00016767,2]
[354199074,1740343889557,-1175.06,0.00016767,2]
[354199075,1740343889566,-752.25,0.00016767,2]
[354199076,1740343889576,-500.0,0.00016767,2]
[354199077,1740343889585,-500.0,0.00016767,2]
[354199078,1740343889594,-500.0,0.00016767,2]
[354199079,1740343889603,-500.0,0.00016767,2]
[354199080,1740343889612,-500.0,0.00016767,2]
[354199081,1740343889622,-500.0,0.00016767,2]
[354199082,1740343889632,-500.0,0.00016767,2]
[354199083,1740343889641,-500.0,0.00016767,2]
[354199084,1740343889651,-500.0,0.00016767,2]
[354199085,1740343889660,-500.0,0.00016767,2]
[354199086,1740343889669,-500.0,0.00016767,2]
[354199087,1740343889678,-398.10424303,0.00016767,2]
[354199088,1740343889688,-500.0,0.00016767,2]
[354199089,1740343889698,-500.0,0.00016767,2]
[354199090,1740343889707,-500.0,0.00016767,2]
[354199091,1740343889716,-882.25,0.00016767,2]
[354199092,1740343889726,-572.45,0.00016767,2]
[354199093,1740343889735,-500.0,0.00016767,2]
[354199094,1740343889744,-904.65,0.00016767,2]
[354199095,1740343889753,-500.0,0.00016767,2]
[354199096,1740343889762,-1013.24,0.00016767,2]
[354199097,1740343889772,-688.42,0.00016767,2]
[354199098,1740343889781,-500.0,0.00016767,2]
[354199099,1740343889790,-710.54,0.00016767,2]
[354199100,1740343889799,-500.0,0.00016767,2]
[354199101,1740343889808,-500.0,0.00016767,2]
[354199102,1740343889816,-500.0,0.00016767,2]
[354199103,1740343889825,-500.0,0.00016767,2]
[354199104,1740343889834,-500.0,0.00016767,2]
[354199105,1740343889843,-500.0,0.00016767,2]
[354199106,1740343889851,-500.0,0.00016767,2]
[354199107,1740343889860,-721.84,0.00016767,2]
[354199108,1740343889868,-500.0,0.00016767,2]
[354199109,1740343889877,-840.19,0.00016767,2]
[354199110,1740343889887,-500.0,0.00016767,2]
[354199111,1740343889896,-500.0,0.00016767,2]
[354199112,1740343889905,-824.8,0.00016767,2]
[354199113,1740343889915,-537.10857048,0.00016767,2]
[354199114,1740343889924,-573.85,0.00016767,2]
[354199115,1740343889933,-500.0,0.00016767,2]
[354199116,1740343889943,-1018.29,0.00016767,2]
[354199117,1740343889951,-500.0,0.00016767,2]
[354199118,1740343889960,-500.0,0.00016767,2]
[354199119,1740343889970,-1020.82,0.00016767,2]
[354199120,1740343889979,-718.52,0.00016767,2]
[354199121,1740343889988,-500.0,0.00016767,2]
[354199122,1740343889997,-500.0,0.00016767,2]
[354199123,1740343890007,-500.0,0.00016767,2]
[354199124,1740343890015,-500.0,0.00016767,2]
[354199125,1740343890024,-500.0,0.00016767,2]
[354199126,1740343890033,-728.75,0.00016767,2]
[354199127,1740343890042,-500.0,0.00016767,2]
[354199128,1740343890051,-591.55506523,0.00016767,2]
[354199129,1740343890060,-500.0,0.00016767,2]
[354199130,1740343890069,-1117.33,0.00016767,2]
[354199131,1740343890078,-500.0,0.00016767,2]
[354199132,1740343890088,-500.0,0.00016767,2]
[354199133,1740343890097,-1971.99,0.00016767,2]
[354199134,1740343890106,-1000.0,0.00016767,2]
[354199135,1740343890116,-500.0,0.00016767,2]
[354199136,1740343890125,-500.0,0.00016767,2]
[354199137,1740343890135,-600.89,0.00016767,2]
[354199138,1740343890143,-500.0,0.00016767,2]
[354199139,1740343890151,-1265.34,0.00016767,2]
[354199140,1740343890161,-500.0,0.00016767,2]
[354199141,1740343890170,-500.0,0.00016767,2]
[354199142,1740343890180,-500.0,0.00016767,2]
[354199143,1740343890190,-1229.88,0.00016767,2]
[354199144,1740343890199,-1266.8,0.00016767,2]
[354199145,1740343890209,-598.29,0.00016767,2]
[354199146,1740343890218,-500.0,0.00016767,2]
[354199147,1740343890387,-623.71,0.00016767,2]
[354199148,1740343890399,-500.0,0.00016767,2]
[354199149,1740343890408,-840.08,0.00016767,2]
[354199150,1740343890418,-513.81,0.00016767,2]
[354199151,1740343890427,-500.0,0.00016767,2]
[354199152,1740343890436,-500.0,0.00016767,2]
[354199153,1740343890445,-1118.44,0.00016767,2]
[354199154,1740343890454,-500.0,0.00016767,2]
[354199155,1740343890463,-749.17,0.00016767,2]
[354199156,1740343890472,-500.0,0.00016767,2]
[354199157,1740343890482,-500.0,0.00016767,2]
[354199158,1740343890491,-500.0,0.00016767,2]
[354199159,1740343890501,-960.59,0.00016767,2]
[354199160,1740343890510,-500.0,0.00016767,2]
[354199161,1740343890519,-691.7,0.00016767,2]
[354199162,1740343890529,-500.0,0.00016767,2]
[354199163,1740343890538,-500.0,0.00016767,2]
[354199164,1740343890547,-500.0,0.00016767,2]
[354199165,1740343890555,-500.0,0.00016767,2]
[354199166,1740343890565,-1373.02,0.00016767,2]
[354199167,1740343890573,-917.83,0.00016767,2]
[354199168,1740343890581,-500.0,0.00016767,2]
[354199169,1740343890591,-886.8,0.00016767,2]
[354199170,1740343890600,-1826.05,0.00016767,2]
[354199171,1740343890609,-896.85,0.00016767,2]
[354199172,1740343890618,-500.0,0.00016767,2]
[354199173,1740343890627,-1403.58,0.00016767,2]
[354199174,1740343890636,-500.0,0.00016767,2]
[354199175,1740343890645,-727.43,0.00016767,2]
[354199176,1740343890654,-500.0,0.00016767,2]
[354199177,1740343890663,-500.0,0.00016767,2]
[354199178,1740343890672,-523.32,0.00016767,2]
[354199179,1740343890682,-500.0,0.00016767,2]
[354199180,1740343890691,-500.0,0.00016767,2]
[354199181,1740343890700,-995.82,0.00016767,2]
[354199182,1740343890709,-500.0,0.00016767,2]
[354199183,1740343890718,-1091.27,0.00016767,2]
[354199184,1740343890727,-814.38,0.00016767,2]
[354199185,1740343890736,-500.0,0.00016767,2]
[354199186,1740343890745,-500.0,0.00016767,2]
[354199187,1740343890753,-500.0,0.00016767,2]
[354199188,1740343890763,-1554.59,0.00016767,2]
[354199189,1740343890771,-696.94,0.00016767,2]
[354199190,1740343890780,-207.30402941,0.00016767,2]
[354199191,1740343890789,-1823.45,0.00016767,2]
[354199192,1740343890798,-500.0,0.00016767,2]
[354199193,1740343890807,-500.0,0.00016767,2]
[354199194,1740343890817,-1229.63,0.00016767,2]
[354199195,1740343890826,-500.0,0.00016767,2]
[354199196,1740343890835,-1001.54,0.00016767,2]
[354199197,1740343890843,-1274.82,0.00016767,2]
[354199198,1740343890852,-500.0,0.00016767,2]
[354199199,1740343890861,-500.0,0.00016767,2]
[354199200,1740343890870,-500.0,0.00016767,2]
[354199201,1740343890879,-506.74930598,0.00016767,2]
[354199202,1740343890888,-701.23,0.00016767,2]
[354199203,1740343890898,-1427.53,0.00016767,2]
[354199204,1740343890907,-1749.18,0.00016767,2]
[354199205,1740343890915,-1912.14,0.00016767,2]
[354199207,1740343890924,-1726.23,0.00016767,2]
[354199208,1740343890933,-600.71,0.00016767,2]
[354199209,1740343890942,-500.0,0.00016767,2]
[354199210,1740343890951,-1061.17,0.00016767,2]
[354199211,1740343890960,-500.0,0.00016767,2]
[354199212,1740343890968,-631.09,0.00016767,2]
[354199213,1740343890977,-730.09,0.00016767,2]
[354199214,1740343890986,-500.0,0.00016767,2]
[354199215,1740343890995,-500.0,0.00016767,2]
[354199216,1740343891005,-563.09,0.00016767,2]
[354199217,1740343891013,-500.0,0.00016767,2]
[354199218,1740343891023,-1187.71,0.00016767,2]
[354199219,1740343891032,-500.0,0.00016767,2]
[354199220,1740343891041,-500.0,0.00016767,2]
[354199221,1740343891051,-1022.83,0.00016767,2]
[354199222,1740343891060,-500.0,0.00016767,2]
[354199223,1740343891069,-629.6,0.00016767,2]
[354199224,1740343891078,-500.0,0.00016767,2]
[354199225,1740343891087,-868.64,0.00016767,2]
[354199226,1740343891097,-615.17,0.00016767,2]
[354199227,1740343891106,-963.75,0.00016767,2]
[354199228,1740343891115,-500.0,0.00016767,2]
[354199229,1740343891124,-1082.2,0.00016767,2]
[354199230,1740343891133,-500.0,0.00016767,2]
[354199231,1740343891142,-1613.22,0.00016767,2]
[354199232,1740343891151,-1127.04,0.00016767,2]
[354199233,1740343891160,-810.6,0.00016767,2]
[354199234,1740343891169,-500.0,0.00016767,2]
[354199235,1740343891178,-500.0,0.00016767,2]
[354199236,1740343891188,-500.0,0.00016767,2]
[354199237,1740343891197,-958.69,0.00016767,2]
[354199238,1740343891207,-1069.92,0.00016767,2]
[354199239,1740343891217,-500.0,0.00016767,2]
[354199240,1740343891226,-1260.78,0.00016767,2]
[354199241,1740343891235,-537.60590992,0.00016767,2]
[354199242,1740343891244,-1176.44,0.00016767,2]
[354199243,1740343891253,-500.0,0.00016767,2]
[354199244,1740343891262,-500.0,0.00016767,2]
[354199245,1740343891272,-1014.83,0.00016767,2]
[354199246,1740343891281,-820.0,0.00016767,2]
[354199247,1740343891290,-500.0,0.00016767,2]
[354199248,1740343891300,-815.12,0.00016767,2]
[354199249,1740343891309,-500.0,0.00016767,2]
[354199250,1740343891318,-753.74,0.00016767,2]
[354199251,1740343891327,-500.0,0.00016767,2]
[354199252,1740343891336,-1067.18,0.00016767,2]
[354199253,1740343891346,-500.57343276,0.00016767,2]
[354199254,1740343891356,-815.12,0.00016767,2]
[354199255,1740343891365,-513.73,0.00016767,2]
[354199256,1740343891375,-1298.4,0.00016767,2]
[354199257,1740343891384,-500.0,0.00016767,2]
[354199258,1740343891393,-697.98,0.00016767,2]
[354199259,1740343891402,-1529.58,0.00016767,2]
[354199260,1740343891412,-500.0,0.00016767,2]
[354199261,1740343891421,-1005.51,0.00016767,2]
[354199262,1740343891430,-862.29,0.00016767,2]
[354199263,1740343891439,-500.0,0.00016767,2]
[354199264,1740343891449,-500.0,0.00016767,2]
[354199265,1740343891459,-1073.46,0.00016767,2]
[354199266,1740343891468,-333.00006461,0.00016767,2]
[354199267,1740343891477,-911.28,0.00016767,2]
[354199268,1740343891487,-541.98,0.00016767,2]
[354199269,1740343891496,-500.0,0.00016767,2]
[354199270,1740343891505,-500.0,0.00016767,2]
[354199271,1740343891514,-1163.35,0.00016767,2]
[354199272,1740343891523,-1240.84,0.00016767,2]
[354199273,1740343891531,-1110.9,0.00016767,2]
[354199274,1740343891541,-792.09,0.00016767,2]
[354199275,1740343891550,-836.05,0.00016767,2]
[354199276,1740343891558,-558.35,0.00016767,2]
[354199277,1740343891567,-500.0,0.00016767,2]
[354199278,1740343891576,-500.0,0.00016767,2]
[354199279,1740343891585,-796.9,0.00016767,2]
[354199280,1740343891594,-1211.01,0.00016767,2]
[354199281,1740343891602,-1698.45,0.00016767,2]
[354199282,1740343891611,-500.0,0.00016767,2]
[354199283,1740343891620,-2093.8,0.00016767,2]
[354199284,1740343891630,-1888.85,0.00016767,2]
[354199285,1740343891640,-753.2,0.00016767,2]
[354199286,1740343891649,-500.0,0.00016767,2]
[354199287,1740343891658,-500.0,0.00016767,2]
[354199288,1740343891667,-1825.5,0.00016767,2]
[354199289,1740343891676,-174.73182047,0.00016767,2]
[354199290,1740343891685,-1011.61,0.00016767,2]
[354199291,1740343891695,-500.0,0.00016767,2]
[354199292,1740343891704,-500.0,0.00016767,2]
[354199293,1740343891713,-500.0,0.00016767,2]
[354199294,1740343891722,-936.03,0.00016767,2]
[354199295,1740343891732,-1738.7,0.00016767,2]
[354199296,1740343891741,-500.0,0.00016767,2]
[354199297,1740343891750,-604.16,0.00016767,2]
[354199298,1740343891759,-500.0,0.00016767,2]
[354199299,1740343891768,-659.13,0.00016767,2]
[354199300,1740343891776,-673.31,0.00016767,2]
[354199301,1740343891785,-1269.57,0.00016767,2]
[354199302,1740343891795,-774.74,0.00016767,2]
[354199303,1740343891804,-1281.61,0.00016767,2]
[354199304,1740343891813,-500.0,0.00016767,2]
[354199305,1740343891822,-1269.93,0.00016767,2]
[354199306,1740343891830,-656.85,0.00016767,2]
[354199307,1740343891839,-826.87,0.00016767,2]
[354199308,1740343891848,-1134.5,0.00016767,2]
[354199309,1740343891857,-1559.34,0.00016767,2]
[354199310,1740343891866,-500.0,0.00016767,2]
[354199311,1740343891875,-1277.43,0.00016767,2]
[354199312,1740343891884,-688.18,0.00016767,2]
[354199313,1740343891892,-500.0,0.00016767,2]
[354199314,1740343891902,-781.73,0.00016767,2]
[354199315,1740343891911,-500.0,0.00016767,2]
[354199316,1740343891920,-874.61,0.00016767,2]
[354199317,1740343891929,-500.0,0.00016767,2]
[354199318,1740343891938,-604.16,0.00016767,2]
[354199319,1740343891947,-500.0,0.00016767,2]
[354199320,1740343891955,-500.0,0.00016767,2]
[354199321,1740343891964,-1132.83,0.00016767,2]
[354199322,1740343891974,-500.0,0.00016767,2]
[354199323,1740343891984,-1985.04,0.00016767,2]
[354199324,1740343891994,-500.0,0.00016767,2]
[354199325,1740343892003,-538.46,0.00016767,2]
[354199326,1740343892011,-1419.61,0.00016767,2]
[354199327,1740343892020,-500.0,0.00016767,2]
[354199328,1740343892029,-555.71333331,0.00016767,2]
[354199329,1740343892038,-500.0,0.00016767,2]
[354199330,1740343892047,-684.0,0.00016767,2]
[354199331,1740343892056,-500.0,0.00016767,2]
[354199332,1740343892066,-500.0,0.00016767,2]
[354199333,1740343892075,-971.3,0.00016767,2]
[354199334,1740343892084,-824.77,0.00016767,2]
[354199335,1740343892093,-1942.43,0.00016767,2]
[354199336,1740343892102,-982.69,0.00016767,2]
[354199337,1740343892111,-1247.14,0.00016767,2]
[354199338,1740343892120,-727.67,0.00016767,2]
[354199339,1740343892130,-500.0,0.00016767,2]
[354199340,1740343892140,-500.0,0.00016767,2]
[354199341,1740343892149,-500.0,0.00016767,2]
[354199342,1740343892158,-1205.37,0.00016767,2]
[354199343,1740343892167,-500.0,0.00016767,2]
[354199344,1740343892177,-2416.39,0.00016767,2]
[354199345,1740343892186,-864.58,0.00016767,2]
[354199346,1740343892195,-500.0,0.00016767,2]
[354199347,1740343892204,-577.54499683,0.00016767,2]
[354199348,1740343892213,-714.82,0.00016767,2]
[354199349,1740343892222,-547.66,0.00016767,2]
[354199350,1740343892231,-500.0,0.00016767,2]
[354199351,1740343892240,-1203.49,0.00016767,2]
[354199352,1740343892250,-1089.13,0.00016767,2]
[354199353,1740343892258,-1047.44,0.00016767,2]
[354199354,1740343892268,-500.0,0.00016767,2]
[354199355,1740343892277,-500.0,0.00016767,2]
[354199356,1740343892286,-1067.63,0.00016767,2]
[354199357,1740343892295,-514.36,0.00016767,2]
[354199358,1740343892304,-1273.8,0.00016767,2]
[354199359,1740343892313,-2005.64,0.00016767,2]
[354199360,1740343892322,-500.0,0.00016767,2]
[354199361,1740343892331,-500.0,0.00016767,2]
[354199362,1740343892340,-500.0,0.00016767,2]
[354199363,1740343892349,-1351.66,0.00016767,2]
[354199364,1740343892357,-1941.42,0.00016767,2]
[354199365,1740343892365,-500.0,0.00016767,2]
[354199366,1740343892374,-729.16,0.00016767,2]
[354199367,1740343892383,-1186.03,0.00016767,2]
[354199368,1740343892392,-790.02,0.00016767,2]
[354199369,1740343892401,-1332.98,0.00016767,2]
[354199370,1740343892410,-500.0,0.00016767,2]
[354199371,1740343892419,-519.13,0.00016767,2]
[354199372,1740343892428,-1349.95,0.00016767,2]
[354199373,1740343892437,-500.0,0.00016767,2]
[354199374,1740343892446,-1384.56,0.00016767,2]
[354199375,1740343892459,-1781.34,0.00016767,2]
[354199376,1740343892468,-1686.06,0.00016767,2]
[354199377,1740343892478,-552.5291284,0.00016767,2]
[354199378,1740343892487,-500.0,0.00016767,2]
[354199379,1740343892495,-767.86,0.00016767,2]
[354199380,1740343892504,-460.93216093,0.00016767,2]
[354199381,1740343893434,-39.06783907,0.00016767,2]
[354199382,1740343893443,-500.0,0.00016767,2]
[354199383,1740343893456,-500.0,0.00016767,2]
[354199384,1740343893465,-726.95086553,0.00016767,2]
[354199385,1740343894006,-365.613853,0.00016438,2]
[354199386,1740343894015,-500.0,0.00016438,2]
[354199387,1740343894024,-365.613853,0.00016438,2]
[354199388,1740343894033,-500.0,0.00016438,2]
[354199389,1740343894042,-500.0,0.00016438,2]
[354199390,1740343894051,-500.0,0.0001652,2]
[354199391,1740343894061,-141.272294,0.0001652,2]
[354199392,1740343894082,-224.341559,0.0001652,2]
[354199393,1740343894091,-365.613853,0.0001652,2]
[354199394,1740343894101,-34.7945881,0.0001652,2]
[354199395,1740343894198,-330.8192649,0.0001652,2]
[354199396,1740343894208,-365.613853,0.0001652,2]
[354199397,1740343894218,-555.85,0.00016602,2]
[354199398,1740343894227,-119.01913447,0.00016767,2]
[354199399,1740343894236,-627.1,0.00016767,2]
[354199400,1740343894246,-777.91,0.00016767,2]
[354199401,1740343894255,-1015.88774276,0.00016767,2]
[354199402,1740343894266,-259.73245581,0.00016767,2]
[354199403,1740343894277,-63.98980143,0.00016767,2]
[354199404,1740343894286,-194.92119854,0.00016767,2]
[354199405,1740343894301,-305.07880146,0.00016767,2]
[354199406,1740343894311,-485.47894254,0.00016767,2]
[354199407,1740343894322,-142.26243058,0.00016767,2]
[354199408,1740343894332,-500.0,0.00016767,2]
[354199409,1740343894341,-500.0,0.00016767,2]
[354199410,1740343894350,-1038.43,0.00016767,2]
[354199411,1740343894360,-500.0,0.00016767,2]
[354199412,1740343894369,-1824.73,0.00016767,2]
[354199413,1740343894378,-1262.75603942,0.00016767,2]
[354199414,1740343894390,-649.36396058,0.00016767,2]
[354199415,1740343894399,-500.0,0.00016767,2]
[354199416,1740343894409,-500.0,0.00016767,2]
[354199417,1740343894418,-1172.18,0.00016767,2]
[354199418,1740343894428,-500.0,0.00016767,2]
[354199419,1740343894437,-834.41,0.00016767,2]
[354199420,1740343894447,-500.0,0.00016767,2]
[354199421,1740343894456,-742.86,0.00016767,2]
[354199422,1740343894465,-500.0,0.00016767,2]
[354199423,1740343894475,-1721.24,0.00016767,2]
[354199424,1740343894483,-500.26,0.00016767,2]
[354199425,1740343894492,-500.0,0.00016767,2]
[354199426,1740343894502,-137.74319916,0.00016767,2]
[354199427,1740343894523,-478.92845,0.00016767,2]
[354199428,1740343894998,-1406.23067041,0.00015098,2]
[354199429,1740343895010,-313.27114497,0.00015098,2]
[354199430,1740343895019,-500.0,0.00016438,2]
[354199431,1740343895028,-500.0,0.00016438,2]
[354199432,1740343895037,-151.0,0.00016438,2]
[354199433,1740343895046,-500.0,0.00016438,2]
[354199434,1740343895055,-365.613853,0.00016438,2]
[354199435,1740343895064,-151.0,0.00016438,2]
[354199436,1740343895073,-365.613853,0.00016438,2]
[354199437,1740343895082,-535.53,0.0001652,2]
[354199438,1740343895091,-500.0,0.0001652,2]
[354199439,1740343895100,-365.613853,0.00016602,2]
[354199440,1740343895109,-365.613853,0.00016602,2]
[354199441,1740343895118,-365.613853,0.00016602,2]
[354199442,1740343895128,-500.0,0.00016602,2]
[354199443,1740343895138,-365.613853,0.00016684,2]
[354199444,1740343895146,-500.0,0.00016684,2]
[354199445,1740343895156,-1530.36835084,0.00016767,2]
[354199446,1740343895165,-1689.06,0.00016767,2]
[354199447,1740343895175,-500.0,0.00016767,2]
[354199448,1740343895184,-872.07,0.00016767,2]
[354199449,1740343895193,-500.0,0.00016767,2]
[354199450,1740343895202,-523.41,0.00016767,2]
[354199451,1740343895211,-1497.22,0.00016767,2]
[354199452,1740343895220,-944.74,0.00016767,2]
[354199453,1740343895229,-500.0,0.00016767,2]
[354199454,1740343895238,-500.0,0.00016767,2]
[354199455,1740343895248,-4243.35,0.00016767,2]
[354199456,1740343895257,-989.34,0.00016767,2]
[354199457,1740343895266,-500.0,0.00016767,2]
[354199458,1740343895276,-500.0,0.00016767,2]
[354199459,1740343895285,-500.0,0.00016767,2]
[354199460,1740343895294,-835.89,0.00016767,2]
[354199461,1740343895303,-1235.06,0.00016767,2]
[354199462,1740343895313,-1273.52,0.00016767,2]
[354199463,1740343895322,-500.0,0.00016767,2]
[354199464,1740343895331,-500.0,0.00016767,2]
[354199465,1740343895340,-776.79,0.00016767,2]
[354199466,1740343895348,-500.0,0.00016767,2]
[354199467,1740343895357,-500.0,0.00016767,2]
[354199468,1740343895366,-2630.34,0.00016767,2]
[354199469,1740343895375,-1843.86,0.00016767,2]
[354199470,1740343895385,-790.19,0.00016767,2]
[354199471,1740343895394,-500.0,0.00016767,2]
[354199472,1740343895403,-500.0,0.00016767,2]
[354199473,1740343895412,-1167.67,0.00016767,2]
[354199474,1740343895421,-2133.43,0.00016767,2]
[354199475,1740343895431,-500.0,0.00016767,2]
[354199476,1740343895440,-1788.66,0.00016767,2]
[354199477,1740343895451,-500.0,0.00016767,2]
[354199478,1740343895665,-500.0,0.00016767,2]
[354199479,1740343895678,-634.15,0.00016767,2]
[354199480,1740343895687,-500.0,0.00016767,2]
[354199481,1740343895696,-918.44,0.00016767,2]
[354199482,1740343895706,-500.0,0.00016767,2]
[354199483,1740343895715,-522.23,0.00016767,2]
[354199484,1740343895723,-852.84,0.00016767,2]
[354199485,1740343895731,-500.0,0.00016767,2]
[354199486,1740343895740,-535.36,0.00016767,2]
[354199487,1740343895749,-2210.66,0.00016767,2]
[354199488,1740343895758,-971.98,0.00016767,2]
[354199489,1740343895767,-2735.08,0.00016767,2]
[354199490,1740343895775,-960.87,0.00016767,2]
[354199491,1740343895784,-865.7,0.00016767,2]
[354199492,1740343895793,-783.82,0.00016767,2]
[354199493,1740343895802,-1055.18,0.00016767,2]
[354199494,1740343895811,-847.45,0.00016767,2]